[Event "1000GM Winter IM Norm-2 2024"]
[Site "Sunnyvale/"]
[Date "2024.01.04"]
[Round "3.6"]
[White "Dominguez Aguilar, Guillermo"]
[Black "Yao, Hanchi"]
[Result "1-0"]
[ECO "B52"]
[WhiteElo "2319"]
[BlackElo "1998"]
[Annotator "RC"]
[PlyCount "77"]
[EventDate "2023.12.14"]
[EventType "schev"]
[EventCountry "USA"]
[SourceTitle "playchess.com"]
[Source "ChessBase"]
[SourceQuality "1"]
[TimeControl "5400+30"]

1. e4 {[%emt 0:00:02]} c5 {[%emt 0:05:15]} 2. Nf3 {[%emt 0:00:12]} d6 {[%emt 0:01:29]} 3. Bb5+ {[%emt 0:00:17]} Bd7 {[%emt 0:00:06]} 4. Bxd7+ {[%emt 0:00:13]} Qxd7 {[%emt 0:00:05]} 5. O-O {[%emt 0:00:15]} Nf6 {[%emt 0:00:17]} 6. Qe2 {[%emt 0:00:25]} Nc6 {[%emt 0:01:21]} 7. c3 {[%emt 0:00:14]} e6 {[%emt 0:01:36]} 8. d4 {[%emt 0:01:03]} d5 {[%emt 0:10:25]} 9. e5 {[%emt 0:00:25]} Ne4 {[%emt 0:01:29]} 10. Rd1 {[%emt 0:02:18]} Be7 {[%emt 0:02:03]} 11. Ne1 {[%emt 0:00:57]} h6 {[%emt 0:03:46]} 12. Be3 {[%emt 0:00:38]} c4 {[%emt 0:07:06]} 13. f3 {[%emt 0:01:35]} Ng5 {[%emt 0:00:05]} 14. Nd2 {[%emt 0:00:10]} f5 {[%emt 0:06:23]} 15. exf6 {[%emt 0:01:54]} gxf6 {[%emt 0:01:49]} 16. b3 {[%emt 0:00:34]} cxb3 {[%emt 0:06:47]} 17. axb3 {[%emt 0:01:07]} Nf7 {[%emt 0:00:47]} 18. Nd3 {[%emt 0:03:06]} e5 {[%emt 0:08:14]} 19. dxe5 {[%emt 0:00:42]} fxe5 {[%emt 0:00:22]} 20. c4 {[%emt 0:00:19]} d4 {[%emt 0:05:43]} 21. Bf2 {[%emt 0:02:55]} O-O-O {[%emt 0:01:13]} 22. b4 {[%emt 0:00:44]} Bxb4 {[%emt 0:01:23]} 23. Nxb4 Nxb4 {[%emt 0:00:03]} 24. Rxa7 {[%emt 0:00:38]} Na6 {[%emt 0:01:12]} 25. Rb1 {[%emt 0:01:24]} Qc6 {[%emt 0:09:02]} 26. Rbxb7 {[%emt 0:01:54]} Qxb7 {[%emt 0:00:10]} 27. Rxb7 {[%emt 0:00:05]} Kxb7 {[%emt 0:00:11]} 28. f4 {[%emt 0:00:17]} Rhe8 {[%emt 0:00:47]} 29. Qe4+ {[%emt 0:00:07]} Kc8 {[%emt 0:01:47]} 30. fxe5 {[%emt 0:01:18]} Rxe5 {[%emt 0:02:42]} 31. Qa8+ {[%emt 0:03:57]} Nb8 {[%emt 0:00:29]} 32. Bg3 {[%emt 0:00:10]} Rde8 {[%emt 0:01:19]} 33. Nf3 {[%emt 0:00:59]} d3 {[%emt 0:01:19]} 34. c5 {[%emt 0:02:50]} R8e6 {[%emt 0:02:05]} 35. Nxe5 {[%emt 0:02:16]} Nxe5 {[%emt 0:00:54]} 36. Qd5 {[%emt 0:02:23]} d2 {[%emt 0:18:46]} 37. Qxe6+ {[%emt 0:01:35]} Ned7 {[%emt 0:00:00]} 38. Qd5 {[%emt 0:01:11]} d1=Q+ {[%emt 0:00:00]} 39. Qxd1 {[%emt 0:03:35]} 1-0

[Event "1000GM Winter IM Norm-2 2024"]
[Site "Sunnyvale/"]
[Date "2024.01.04"]
[Round "3.7"]
[White "Ramirez, Carlos"]
[Black "Bhatta, Rohit"]
[Result "1-0"]
[ECO "D35"]
[WhiteElo "2190"]
[BlackElo "1867"]
[Annotator "RC"]
[PlyCount "57"]
[EventDate "2023.12.14"]
[EventType "schev"]
[EventCountry "USA"]
[SourceTitle "playchess.com"]
[Source "ChessBase"]
[SourceQuality "1"]
[TimeControl "5400+30"]

1. d4 {[%emt 0:04:03]} Nf6 {[%emt 0:00:05]} 2. c4 {[%emt 0:00:07]} e6 {[%emt 0:00:06]} 3. Nc3 {[%emt 0:01:13]} d5 {[%emt 0:00:15]} 4. cxd5 {[%emt 0:00:11]} exd5 {[%emt 0:00:02]} 5. Bg5 {[%emt 0:00:09]} c6 {[%emt 0:00:05]} 6. e3 {[%emt 0:00:08]} Bf5 {[%emt 0:00:12]} 7. Bd3 {[%emt 0:02:47]} Bxd3 {[%emt 0:00:17]} 8. Qxd3 {[%emt 0:00:02]} Be7 {[%emt 0:00:21]} 9. Nge2 {[%emt 0:00:09]} Nbd7 {[%emt 0:00:26]} 10. f3 {[%emt 0:03:27]} Nh5 {[%emt 0:03:22]} 11. Bxe7 {[%emt 0:01:42]} Qxe7 {[%emt 0:00:03]} 12. e4 {[%emt 0:01:16]} dxe4 {[%emt 0:01:36]} 13. fxe4 {[%emt 0:00:04]} O-O {[%emt 0:02:34]} 14. Qf3 {[%emt 0:08:15]} g6 {[%emt 0:02:45]} 15. O-O-O {[%emt 0:01:37]} b5 {[%emt 0:09:26]} 16. g4 {[%emt 0:06:07]} Ng7 {[%emt 0:05:15]} 17. h4 {[%emt 0:08:03]} b4 {[%emt 0:02:51]} 18. Na4 {[%emt 0:00:09]} c5 {[%emt 0:02:03]} 19. Nxc5 {[%emt 0:00:24]} Nxc5 {[%emt 0:00:14]} 20. dxc5 {[%emt 0:00:08]} Rac8 {[%emt 0:03:54]} 21. Nf4 {[%emt 0:02:31]} Qxc5+ {[%emt 0:20:15]} 22. Kb1 {[%emt 0:00:05]} Rfd8 {[%emt 0:19:29]} 23. Nd5 {[%emt 0:07:03]} Qc2+ {[%emt 0:04:26]} 24. Ka1 {[%emt 0:01:23]} Kf8 {[%emt 0:01:00]} 25. h5 {[%emt 0:00:48]} gxh5 {[%emt 0:09:39]} 26. gxh5 {[%emt 0:00:55]} Ne6 {[%emt 0:01:54]} 27. Qf6 {[%emt 0:02:20]} Rxd5 {[%emt 0:00:12]} 28. exd5 {[%emt 0:00:23]} Nc5 {[%emt 0:01:23]} 29. d6 {[%emt 0:00:59]} 1-0

[Event "1000GM Winter IM Norm-2 2024"]
[Site "Sunnyvale/"]
[Date "2024.01.04"]
[Round "3.8"]
[White "Arenas, David"]
[Black "Stevens, Adam B"]
[Result "1-0"]
[ECO "A13"]
[WhiteElo "2406"]
[BlackElo "1878"]
[Annotator "RC"]
[PlyCount "45"]
[EventDate "2023.12.14"]
[EventType "schev"]
[EventCountry "USA"]
[SourceTitle "playchess.com"]
[Source "ChessBase"]
[SourceQuality "1"]
[TimeControl "5400+30"]

1. c4 {[%emt 0:12:18]} e6 {[%emt 0:00:09]} 2. g3 {[%emt 0:00:36]} d5 {[%emt 0:01:29]} 3. Nf3 {[%emt 0:00:19]} Nf6 {[%emt 0:00:06]} 4. Bg2 {[%emt 0:00:11]} dxc4 {[%emt 0:00:02]} 5. Qa4+ {[%emt 0:00:09]} Bd7 {[%emt 0:00:02]} 6. Qxc4 {[%emt 0:00:21]} c5 {[%emt 0:00:01]} 7. Ne5 {[%emt 0:01:37]} Qc8 {[%emt 0:00:02]} 8. Nxd7 {[%emt 0:02:45]} Qxd7 {[%emt 0:00:48]} 9. Nc3 {[%emt 0:01:38]} Nc6 {[%emt 0:04:38]} 10. O-O {[%emt 0:01:46]} Be7 {[%emt 0:01:23]} 11. Qa4 {[%emt 0:03:33]} O-O {[%emt 0:05:27]} 12. Bxc6 {[%emt 0:01:23]} bxc6 {[%emt 0:01:55]} 13. d3 {[%emt 0:00:31]} Rab8 {[%emt 0:01:57]} 14. Qc2 {[%emt 0:02:25]} Nd5 {[%emt 0:06:51]} 15. Bd2 {[%emt 0:07:56]} Nb4 {[%emt 0:01:49]} 16. Qc1 {[%emt 0:00:44]} Nd5 {[%emt 0:08:11]} 17. Na4 {[%emt 0:01:27]} Rb5 {[%emt 0:01:08]} 18. Be3 {[%emt 0:03:46]} Nxe3 {[%emt 0:06:03]} 19. Qxe3 {[%emt 0:00:10]} Qd4 {[%emt 0:00:38]} 20. b3 {[%emt 0:00:33]} Rc8 {[%emt 0:03:42]} 21. Rac1 {[%emt 0:01:24]} h6 {[%emt 0:05:11]} 22. Rc4 {[%emt 0:01:12]} Qd5 {[%emt 0:02:37]} 23. Nc3 {[%emt 0:01:29]} 1-0

[Event "1000GM Winter IM Norm-2 2024"]
[Site "Sunnyvale/"]
[Date "2024.01.04"]
[Round "3.9"]
[White "Sivakumar, Shaashwath"]
[Black "Mede, Istvan"]
[Result "1/2-1/2"]
[ECO "A65"]
[WhiteElo "2205"]
[BlackElo "2187"]
[Annotator "RC"]
[PlyCount "46"]
[EventDate "2023.12.14"]
[EventType "schev"]
[EventCountry "USA"]
[SourceTitle "playchess.com"]
[Source "ChessBase"]
[SourceQuality "1"]
[TimeControl "5400+30"]

1. d4 {[%emt 0:00:03]} Nf6 {[%emt 0:04:04]} 2. c4 {[%emt 0:00:13]} g6 {[%emt 0:00:04]} 3. Nc3 {[%emt 0:00:03]} Bg7 {[%emt 0:00:05]} 4. e4 {[%emt 0:00:04]} d6 {[%emt 0:00:02]} 5. f3 {[%emt 0:00:05]} O-O {[%emt 0:00:05]} 6. Nge2 {[%emt 0:00:07]} c5 {[%emt 0:00:09]} 7. d5 {[%emt 0:00:04]} e6 {[%emt 0:00:04]} 8. Ng3 {[%emt 0:00:03]} exd5 {[%emt 0:00:02]} 9. cxd5 {[%emt 0:00:05]} a6 {[%emt 0:00:11]} 10. a4 {[%emt 0:00:04]} h5 {[%emt 0:00:05]} 11. Bg5 {[%emt 0:00:06]} Qe8 {[%emt 0:00:05]} 12. Bd3 {[%emt 0:00:10]} Nh7 {[%emt 0:00:19]} 13. Bf4 {[%emt 0:00:06]} Qe7 {[%emt 0:00:42]} 14. O-O {[%emt 0:00:19]} h4 {[%emt 0:03:12]} 15. Nge2 {[%emt 0:00:07]} f5 {[%emt 0:02:22]} 16. exf5 {[%emt 0:05:07]} gxf5 {[%emt 0:00:55]} 17. Qb1 {[%emt 0:12:52]} Qf6 {[%emt 0:06:52]} 18. b4 {[%emt 0:16:39]} Nd7 {[%emt 0:03:29]} 19. Bc2 {[%emt 0:01:53]} b6 {[%emt 0:03:44]} 20. bxc5 {[%emt 0:06:38]} bxc5 {[%emt 0:02:07]} 21. Ra3 {[%emt 0:06:34]} Rb8 {[%emt 0:01:55]} 22. Rb3 {[%emt 0:07:36]} Rxb3 {[%emt 0:00:05]} 23. Qxb3 {[%emt 0:00:04]} Re8 {[%emt 0:00:07]} 1/2-1/2

[Event "1000GM Winter IM Norm-2 2024"]
[Site "Sunnyvale/"]
[Date "2024.01.04"]
[Round "4.1"]
[White "Calderin Gonzalez, Roberto"]
[Black "Zhou, Ruoyu"]
[Result "1/2-1/2"]
[ECO "D58"]
[WhiteElo "2413"]
[BlackElo "2112"]
[Annotator "RC"]
[PlyCount "148"]
[EventDate "2023.12.14"]
[EventType "schev"]
[EventCountry "USA"]
[SourceTitle "playchess.com"]
[Source "ChessBase"]
[SourceQuality "1"]
[TimeControl "5400+30"]

1. Nf3 {[%emt 0:03:43]} d5 {[%emt 0:00:10]} 2. d4 {[%emt 0:00:09]} Nf6 {[%emt 0:00:24]} 3. c4 {[%emt 0:00:06]} e6 {[%emt 0:00:17]} 4. Nc3 {[%emt 0:00:17]} Be7 {[%emt 0:00:09]} 5. Bg5 {[%emt 0:00:08]} O-O {[%emt 0:00:11]} 6. e3 {[%emt 0:00:04]} h6 {[%emt 0:00:09]} 7. Bh4 {[%emt 0:00:06]} b6 {[%emt 0:00:12]} 8. Qb3 {[%emt 0:01:54]} Bb7 {[%emt 0:00:31]} 9. Bxf6 {[%emt 0:00:08]} Bxf6 {[%emt 0:00:24]} 10. cxd5 {[%emt 0:00:02]} exd5 {[%emt 0:01:19]} 11. Rd1 {[%emt 0:00:03]} c6 {[%emt 0:02:15]} 12. Bd3 {[%emt 0:00:10]} Nd7 {[%emt 0:01:19]} 13. O-O {[%emt 0:00:13]} Re8 {[%emt 0:01:19]} 14. Rfe1 {[%emt 0:03:10]} Nf8 {[%emt 0:00:54]} 15. e4 {[%emt 0:02:33]} Ne6 {[%emt 0:01:04]} 16. e5 {[%emt 0:01:58]} Be7 {[%emt 0:00:12]} 17. Bb1 {[%emt 0:00:08]} g6 {[%emt 0:03:29]} 18. g3 {[%emt 0:02:43]} Qc7 {[%emt 0:21:16]} 19. h4 {[%emt 0:06:23]} h5 {[%emt 0:03:19]} 20. Ne2 {[%emt 0:01:28]} Qd7 {[%emt 0:10:49]} 21. Qe3 {[%emt 0:01:47]} c5 {[%emt 0:07:36]} 22. Nf4 {[%emt 0:03:05]} cxd4 {[%emt 0:06:48]} 23. Nxd4 {[%emt 0:00:15]} Nxd4 {[%emt 0:00:42]} 24. Qxd4 {[%emt 0:02:23]} Bc5 {[%emt 0:02:14]} 25. Qd3 {[%emt 0:03:07]} Qc6 {[%emt 0:18:02]} 26. e6 {[%emt 0:01:13]} f5 {[%emt 0:00:34]} 27. Qf3 {[%emt 0:00:54]} d4 {[%emt 0:01:22]} 28. Qxc6 {[%emt 0:00:15]} Bxc6 {[%emt 0:00:03]} 29. Nxg6 {[%emt 0:00:09]} Bf3 {[%emt 0:00:35]} 30. Bxf5 {[%emt 0:00:20]} Bxd1 {[%emt 0:00:40]} 31. Rxd1 {[%emt 0:00:02]} Rad8 {[%emt 0:04:09]} 32. Nf4 {[%emt 0:00:09]} Rf8 {[%emt 0:02:07]} 33. Bd3 {[%emt 0:01:48]} Rxf4 {[%emt 0:02:28]} 34. gxf4 {[%emt 0:00:08]} Kg7 {[%emt 0:00:22]} 35. Kg2 {[%emt 0:14:00]} Kf6 {[%emt 0:00:11]} 36. f5 {[%emt 0:00:08]} Rg8+ {[%emt 0:00:28]} 37. Kf3 {[%emt 0:04:30]} Rg4 {[%emt 0:00:15]} 38. Rh1 {[%emt 0:00:37]} Kg7 {[%emt 0:02:01]} 39. Rh3 {[%emt 0:04:20]} Be7 {[%emt 0:03:36]} 40. Rg3 {[%emt 0:01:07]} Bxh4 {[%emt 0:00:14]} 41. Rxg4+ {[%emt 0:00:07]} hxg4+ {[%emt 0:00:02]} 42. Kxg4 {[%emt 0:00:06]} Be7 {[%emt 0:00:56]} 43. Ba6 {[%emt 0:00:16]} Kf6 {[%emt 0:00:53]} 44. Kf4 {[%emt 0:00:07]} Bc5 {[%emt 0:00:46]} 45. f3 {[%emt 0:00:16]} d3 {[%emt 0:00:49]} 46. Bxd3 {[%emt 0:12:48]} a5 {[%emt 0:00:49]} 47. Ke4 {[%emt 0:00:10]} Bf2 {[%emt 0:00:23]} 48. Kd5 {[%emt 0:00:12]} Be3 {[%emt 0:00:36]} 49. a3 {[%emt 0:00:11]} Bc5 {[%emt 0:00:42]} 50. Kc4 {[%emt 0:00:20]} Bd6 {[%emt 0:00:32]} 51. Kb5 {[%emt 0:00:52]} Bc5 {[%emt 0:00:15]} 52. Bc4 {[%emt 0:00:03]} Bd4 {[%emt 0:00:44]} 53. b4 {[%emt 0:01:00]} axb4 {[%emt 0:00:27]} 54. a4 {[%emt 0:00:05]} b3 {[%emt 0:02:30]} 55. Bxb3 {[%emt 0:00:11]} Ke7 {[%emt 0:00:38]} 56. Kc6 {[%emt 0:00:07]} Be3 {[%emt 0:00:32]} 57. Kd5 {[%emt 0:01:15]} Kf6 {[%emt 0:00:58]} 58. Kd6 {[%emt 0:01:03]} Bc5+ {[%emt 0:00:22]} 59. Kd7 {[%emt 0:00:09]} Bb4 {[%emt 0:00:36]} 60. Kc6 {[%emt 0:00:11]} Ba5 {[%emt 0:00:18]} 61. Bc4 {[%emt 0:00:47]} Ke7 {[%emt 0:00:15]} 62. Bb5 {[%emt 0:00:12]} Kf6 {[%emt 0:00:17]} 63. Kc7 {[%emt 0:00:25]} Ke7 {[%emt 0:00:21]} 64. f4 {[%emt 0:01:29]} Kf6 {[%emt 0:00:16]} 65. Kd7 {[%emt 0:00:42]} Bb4 {[%emt 0:00:13]} 66. Bd3 {[%emt 0:00:10]} Be7 {[%emt 0:00:27]} 67. Kc6 {[%emt 0:00:21]} Bd8 {[%emt 0:00:11]} 68. Kd6 {[%emt 0:00:47]} Be7+ {[%emt 0:00:20]} 69. Kc7 {[%emt 0:00:45]} Bc5 {[%emt 0:00:15]} 70. Kd7 {[%emt 0:01:38]} Bb4 {[%emt 0:00:19]} 71. Bc2 {[%emt 0:00:14]} Bc5 {[%emt 0:00:26]} 72. Kc6 {[%emt 0:00:16]} Be3 {[%emt 0:00:17]} 73. Bb3 {[%emt 0:00:51]} Bf2 {[%emt 0:00:21]} 74. Kd6 {[%emt 0:00:57]} Bc5+ {[%emt 0:00:22]} 1/2-1/2

[Event "1000GM Winter IM Norm-2 2024"]
[Site "Sunnyvale/"]
[Date "2024.01.04"]
[Round "4.2"]
[White "Zuluaga Mancilla, Cesar"]
[Black "Karthi, Jashith"]
[Result "1-0"]
[ECO "E14"]
[WhiteElo "2251"]
[BlackElo "2032"]
[Annotator "RC"]
[PlyCount "151"]
[EventDate "2023.12.14"]
[EventType "schev"]
[EventCountry "USA"]
[SourceTitle "playchess.com"]
[Source "ChessBase"]
[SourceQuality "1"]
[TimeControl "5400+30"]

1. d4 {[%emt 0:10:15]} d5 {[%emt 0:00:05]} 2. Nf3 {[%emt 0:00:46]} Nf6 {[%emt 0:00:05]} 3. c4 {[%emt 0:01:03]} e6 {[%emt 0:00:06]} 4. e3 {[%emt 0:00:46]} b6 {[%emt 0:00:11]} 5. Nc3 {[%emt 0:00:26]} Bb7 {[%emt 0:00:08]} 6. cxd5 {[%emt 0:00:22]} exd5 {[%emt 0:00:09]} 7. Bd3 {[%emt 0:00:57]} Be7 {[%emt 0:00:19]} 8. O-O {[%emt 0:00:10]} Nbd7 {[%emt 0:00:27]} 9. b3 {[%emt 0:00:09]} O-O {[%emt 0:00:30]} 10. Bb2 {[%emt 0:00:05]} Re8 {[%emt 0:00:52]} 11. Qc2 {[%emt 0:01:05]} Rc8 {[%emt 0:00:49]} 12. Rac1 {[%emt 0:00:54]} c5 {[%emt 0:01:18]} 13. Qb1 {[%emt 0:00:17]} Bf8 {[%emt 0:01:15]} 14. Bf5 {[%emt 0:01:03]} g6 {[%emt 0:01:05]} 15. Bh3 {[%emt 0:00:50]} Rc6 {[%emt 0:03:18]} 16. dxc5 {[%emt 0:00:55]} bxc5 {[%emt 0:01:08]} 17. Rfd1 {[%emt 0:00:06]} Nb6 {[%emt 0:04:50]} 18. Qa1 {[%emt 0:07:14]} Bg7 {[%emt 0:03:21]} 19. a4 {[%emt 0:10:09]} a5 {[%emt 0:00:25]} 20. Nb5 {[%emt 0:00:38]} Ba6 {[%emt 0:07:09]} 21. Ne5 {[%emt 0:02:02]} Bxb5 {[%emt 0:01:08]} 22. axb5 {[%emt 0:00:15]} Rd6 {[%emt 0:00:19]} 23. Nc6 {[%emt 0:02:00]} Qa8 {[%emt 0:00:17]} 24. Rxc5 {[%emt 0:01:13]} Ne4 {[%emt 0:00:27]} 25. Rc2 {[%emt 0:02:51]} Bxb2 {[%emt 0:00:14]} 26. Qxb2 {[%emt 0:00:09]} h5 {[%emt 0:04:23]} 27. g3 {[%emt 0:00:18]} a4 {[%emt 0:00:28]} 28. Ra1 {[%emt 0:00:29]} Qb7 {[%emt 0:00:33]} 29. bxa4 {[%emt 0:00:26]} Nc4 {[%emt 0:00:20]} 30. Qd4 {[%emt 0:02:36]} Ng5 {[%emt 0:02:01]} 31. Bg2 {[%emt 0:00:39]} Ne6 {[%emt 0:00:56]} 32. Qd1 {[%emt 0:01:02]} Qd7 {[%emt 0:00:48]} 33. Nd4 {[%emt 0:03:53]} Nc5 {[%emt 0:01:44]} 34. a5 {[%emt 0:00:55]} Ne6 {[%emt 0:00:54]} 35. a6 {[%emt 0:05:00]} Nxd4 {[%emt 0:00:18]} 36. Qxd4 {[%emt 0:00:05]} Qxb5 {[%emt 0:01:36]} 37. Rxc4 {[%emt 0:04:47]} Qxc4 {[%emt 0:00:22]} 38. Qxc4 {[%emt 0:00:05]} dxc4 {[%emt 0:00:04]} 39. a7 {[%emt 0:00:07]} c3 {[%emt 0:00:17]} 40. a8=Q {[%emt 0:00:12]} Rxa8 {[%emt 0:00:03]} 41. Rxa8+ {[%emt 0:00:23]} Kg7 {[%emt 0:00:05]} 42. Rc8 {[%emt 0:00:09]} Rd1+ {[%emt 0:00:05]} 43. Bf1 {[%emt 0:00:18]} Rc1 {[%emt 0:00:04]} 44. Kg2 {[%emt 0:00:13]} Kf6 {[%emt 0:00:04]} 45. Bd3 {[%emt 0:04:02]} Ke7 {[%emt 0:00:24]} 46. e4 {[%emt 0:00:35]} Kd7 {[%emt 0:00:26]} 47. Rc4 {[%emt 0:00:05]} Kd6 {[%emt 0:00:11]} 48. f4 {[%emt 0:00:10]} f6 {[%emt 0:00:05]} 49. h4 {[%emt 0:00:17]} Kd7 {[%emt 0:00:14]} 50. Kf3 {[%emt 0:01:27]} Kd6 {[%emt 0:00:06]} 51. Kf2 {[%emt 0:00:06]} Ke6 {[%emt 0:00:23]} 52. Ke2 {[%emt 0:02:20]} Kd6 {[%emt 0:00:10]} 53. Ke3 {[%emt 0:05:13]} Rg1 {[%emt 0:00:34]} 54. Kd4 {[%emt 0:00:16]} Rxg3 {[%emt 0:00:15]} 55. e5+ {[%emt 0:00:05]} fxe5+ {[%emt 0:00:26]} 56. fxe5+ {[%emt 0:00:07]} Kd7 {[%emt 0:00:10]} 57. Rxc3 {[%emt 0:00:09]} Rg4+ {[%emt 0:00:08]} 58. Kd5 {[%emt 0:00:23]} Rxh4 {[%emt 0:00:14]} 59. Bxg6 {[%emt 0:00:29]} Rh1 {[%emt 0:00:19]} 60. Bf5+ {[%emt 0:00:12]} Ke7 {[%emt 0:00:27]} 61. Rc7+ {[%emt 0:00:05]} Kd8 {[%emt 0:00:50]} 62. Rd7+ {[%emt 0:00:10]} Ke8 {[%emt 0:00:35]} 63. Rh7 {[%emt 0:00:18]} Ra1 {[%emt 0:00:16]} 64. Bg6+ {[%emt 0:00:48]} Kd8 {[%emt 0:00:08]} 65. Bxh5 {[%emt 0:00:12]} Ra5+ {[%emt 0:00:07]} 66. Ke6 {[%emt 0:00:11]} Ra6+ {[%emt 0:00:13]} 67. Kf5 {[%emt 0:00:18]} Rb6 {[%emt 0:00:20]} 68. e6 {[%emt 0:00:53]} Rb5+ {[%emt 0:00:02]} 69. Kf6 {[%emt 0:00:23]} Rb6 {[%emt 0:00:12]} 70. Bg4 {[%emt 0:00:31]} Ra6 {[%emt 0:00:42]} 71. Bf5 {[%emt 0:00:21]} Rb6 {[%emt 0:00:09]} 72. Rh8+ {[%emt 0:00:09]} Kc7 {[%emt 0:00:08]} 73. Kf7 {[%emt 0:00:30]} Kd6 {[%emt 0:00:11]} 74. e7 {[%emt 0:01:12]} Rb7 {[%emt 0:00:04]} 75. Rd8+ {[%emt 0:00:11]} Ke5 {[%emt 0:00:09]} 76. Bd7 {[%emt 0:01:07]} 1-0

[Event "1000GM Winter IM Norm-2 2024"]
[Site "Sunnyvale/"]
[Date "2024.01.04"]
[Round "4.3"]
[White "Hajnal, Zoltan"]
[Black "Goktepe, Derin"]
[Result "1/2-1/2"]
[ECO "C54"]
[WhiteElo "2383"]
[BlackElo "2187"]
[Annotator "RC"]
[PlyCount "91"]
[EventDate "2023.12.14"]
[EventType "schev"]
[EventCountry "USA"]
[SourceTitle "playchess.com"]
[Source "ChessBase"]
[SourceQuality "1"]
[TimeControl "5400+30"]

1. e4 {[%emt 0:05:27]} e5 {[%emt 0:00:11]} 2. Nf3 {[%emt 0:00:07]} Nc6 {[%emt 0:00:16]} 3. Bc4 {[%emt 0:00:06]} Bc5 {[%emt 0:00:30]} 4. c3 {[%emt 0:00:25]} Nf6 {[%emt 0:00:31]} 5. d3 {[%emt 0:00:23]} d6 {[%emt 0:00:54]} 6. Nbd2 {[%emt 0:00:54]} a5 {[%emt 0:04:16]} 7. a4 {[%emt 0:06:05]} O-O {[%emt 0:02:42]} 8. h3 {[%emt 0:02:38]} Be6 {[%emt 0:07:44]} 9. Bb3 {[%emt 0:03:40]} Re8 {[%emt 0:04:24]} 10. Bc2 {[%emt 0:06:40]} Ba7 {[%emt 0:05:54]} 11. Nf1 {[%emt 0:01:59]} Ne7 {[%emt 0:09:13]} 12. Ng3 {[%emt 0:11:00]} Ng6 {[%emt 0:04:02]} 13. O-O {[%emt 0:01:42]} d5 {[%emt 0:06:12]} 14. Ng5 {[%emt 0:12:11]} Bc8 {[%emt 0:03:42]} 15. exd5 {[%emt 0:00:24]} Nxd5 {[%emt 0:01:19]} 16. Nf3 {[%emt 0:12:45]} Ndf4 {[%emt 0:07:00]} 17. Be3 {[%emt 0:04:11]} Qf6 {[%emt 0:06:42]} 18. d4 {[%emt 0:02:39]} exd4 {[%emt 0:03:26]} 19. Nxd4 {[%emt 0:01:43]} Nd5 {[%emt 0:06:59]} 20. Bb3 {[%emt 0:03:28]} Ndf4 {[%emt 0:04:03]} 21. Nh5 {[%emt 0:04:07]} Nxh5 {[%emt 0:02:35]} 22. Qxh5 {[%emt 0:00:14]} Bb6 {[%emt 0:05:59]} 23. Rad1 {[%emt 0:03:10]} Bxd4 {[%emt 0:01:25]} 24. Bxd4 {[%emt 0:00:44]} Qf5 {[%emt 0:01:20]} 25. Qxf5 {[%emt 0:02:31]} Bxf5 {[%emt 0:00:16]} 26. Rfe1 {[%emt 0:02:43]} Nf4 {[%emt 0:00:54]} 27. Rxe8+ {[%emt 0:02:36]} Rxe8 {[%emt 0:00:05]} 28. Be5 {[%emt 0:00:47]} Be6 {[%emt 0:01:20]} 29. c4 {[%emt 0:01:31]} Ng6 {[%emt 0:01:12]} 30. Bxc7 {[%emt 0:00:07]} Ra8 {[%emt 0:00:20]} 31. Rd8+ {[%emt 0:01:06]} Rxd8 {[%emt 0:00:04]} 32. Bxd8 {[%emt 0:00:05]} Ne5 {[%emt 0:00:18]} 33. Bxa5 {[%emt 0:00:05]} Nd3 {[%emt 0:00:54]} 34. Bc3 {[%emt 0:00:35]} Nc1 {[%emt 0:00:33]} 35. Bc2 {[%emt 0:01:35]} Bxc4 {[%emt 0:00:23]} 36. f3 {[%emt 0:01:21]} Nd3 {[%emt 0:00:30]} 37. b3 {[%emt 0:01:03]} Ba6 {[%emt 0:00:15]} 38. b4 {[%emt 0:00:45]} Bc4 {[%emt 0:00:15]} 39. h4 {[%emt 0:00:38]} f6 {[%emt 0:00:12]} 40. g3 {[%emt 0:01:10]} Kf7 {[%emt 0:00:19]} 41. Kg2 {[%emt 0:00:15]} Ke6 {[%emt 0:00:28]} 42. f4 {[%emt 0:00:09]} Bd5+ {[%emt 0:00:15]} 43. Kf1 {[%emt 0:00:09]} Bc4 {[%emt 0:00:05]} 44. Kg2 {[%emt 0:00:34]} Bd5+ {[%emt 0:00:03]} 45. Kf1 {[%emt 0:00:23]} Bc4 {[%emt 0:00:07]} 46. Kg2 {[%emt 0:06:40]} 1/2-1/2

[Event "1000GM Winter IM Norm-2 2024"]
[Site "Sunnyvale/"]
[Date "2024.01.04"]
[Round "4.4"]
[White "Atwell, Rose"]
[Black "Rodi, Luis Ernesto"]
[Result "1-0"]
[ECO "B13"]
[WhiteElo "2104"]
[BlackElo "2196"]
[Annotator "RC"]
[PlyCount "71"]
[EventDate "2023.12.14"]
[EventType "schev"]
[EventCountry "USA"]
[SourceTitle "playchess.com"]
[Source "ChessBase"]
[SourceQuality "1"]
[TimeControl "5400+30"]

1. e4 {[%emt 0:00:02]} c6 {[%emt 0:02:32]} 2. d4 {[%emt 0:00:05]} d5 {[%emt 0:00:04]} 3. exd5 {[%emt 0:00:05]} cxd5 {[%emt 0:00:04]} 4. Bd3 {[%emt 0:00:08]} Nf6 {[%emt 0:00:05]} 5. h3 {[%emt 0:00:11]} Nc6 {[%emt 0:00:04]} 6. c3 {[%emt 0:00:05]} e5 {[%emt 0:00:04]} 7. dxe5 {[%emt 0:00:24]} Nxe5 {[%emt 0:00:04]} 8. Nf3 {[%emt 0:00:40]} Nxd3+ {[%emt 0:00:08]} 9. Qxd3 {[%emt 0:00:03]} Bd6 {[%emt 0:00:06]} 10. O-O {[%emt 0:02:52]} O-O {[%emt 0:00:07]} 11. Bg5 {[%emt 0:01:37]} h6 {[%emt 0:00:24]} 12. Bh4 {[%emt 0:03:08]} g5 {[%emt 0:00:15]} 13. Bg3 {[%emt 0:00:12]} Bxg3 {[%emt 0:00:12]} 14. fxg3 {[%emt 0:00:12]} g4 {[%emt 0:00:03]} 15. hxg4 {[%emt 0:02:56]} Nxg4 {[%emt 0:00:12]} 16. Na3 {[%emt 0:15:52]} Re8 {[%emt 0:04:54]} 17. Nc2 {[%emt 0:04:20]} Qb6+ {[%emt 0:05:44]} 18. Nfd4 {[%emt 0:03:50]} Re4 {[%emt 0:09:16]} 19. Rae1 {[%emt 0:11:09]} Qg6 {[%emt 0:11:45]} 20. Rf4 {[%emt 0:04:26]} Qh5 {[%emt 0:12:35]} 21. Nf3 {[%emt 0:02:41]} Rxe1+ {[%emt 0:00:33]} 22. Ncxe1 {[%emt 0:00:43]} Bd7 {[%emt 0:02:09]} 23. c4 {[%emt 0:05:28]} Re8 {[%emt 0:06:15]} 24. cxd5 {[%emt 0:05:09]} a6 {[%emt 0:03:36]} 25. Nc2 {[%emt 0:02:52]} Ne5 {[%emt 0:11:15]} 26. Nxe5 {[%emt 0:02:31]} Rxe5 {[%emt 0:00:05]} 27. Ne3 {[%emt 0:02:48]} Qg5 {[%emt 0:06:01]} 28. Qd4 {[%emt 0:01:38]} Qe7 {[%emt 0:04:35]} 29. Ng4 {[%emt 0:04:27]} Bxg4 {[%emt 0:10:51]} 30. Rxg4+ {[%emt 0:00:20]} Kh7 {[%emt 0:00:08]} 31. d6 {[%emt 0:01:48]} Qd7 {[%emt 0:00:10]} 32. Qxe5 {[%emt 0:02:30]} Qxg4 {[%emt 0:00:06]} 33. Qd5 {[%emt 0:00:51]} Qd7 {[%emt 0:00:04]} 34. Qe4+ {[%emt 0:00:39]} Kg7 {[%emt 0:00:10]} 35. Qe7 {[%emt 0:00:34]} Qg4 {[%emt 0:01:10]} 36. d7 {[%emt 0:00:18]} 1-0